fUST/lending_fUST_20240803
["ID","MTS","AMOUNT","RATE_DAILY","PERIOD"]
[333956633,1722648642017,-207.87671644,0.00013598,2]
[333956634,1722648642027,-197.07185579,0.00013698,2]
[333956635,1722648642038,-95.05142777,0.00013698,2]
[333956636,1722648642051,-64.72546506,0.00013698,2]
[333956637,1722648642061,-879.37901871,0.00013972,2]
[333956638,1722648642072,-517.07507833,0.00013972,2]
[333956639,1722648642082,-500.0,0.00013972,2]
[333956640,1722648642092,-849.67,0.00013972,2]
[333956641,1722648642101,-23.1504379,0.00013972,2]
[333956642,1722648642114,-476.8495621,0.00013972,2]
[333956643,1722648642123,-525.14258978,0.00013972,2]
[333956644,1722648642133,-500.0,0.00013972,2]
[333956645,1722648642142,-500.0,0.00013972,2]
[333956646,1722648642152,-263.45638058,0.00013972,2]
[333956647,1722648642164,-236.54361942,0.00013972,2]
[333956648,1722648642176,-558.8,0.00013972,2]
[333956649,1722648642186,-500.0,0.00013972,2]
[333956650,1722648642201,-500.0,0.00013972,2]
[333956651,1722648642211,-500.0,0.00013972,2]
[333956652,1722648642220,-500.0,0.00013972,2]
[333956653,1722648642230,-500.0,0.00013972,2]
[333956654,1722648642239,-500.0,0.00013972,2]
[333956655,1722648642248,-500.0,0.00013972,2]
[333956656,1722648642258,-581.26,0.00013972,2]
[333956657,1722648642268,-1404.09,0.00013972,2]
[333956658,1722648642278,-500.0,0.00013972,2]
[333956659,1722648642288,-920.59,0.00013972,2]
[333956660,1722648642298,-500.0,0.00013972,2]
[333956661,1722648642308,-500.0,0.00013972,2]
[333956662,1722648642317,-500.0,0.00013972,2]
[333956663,1722648642327,-693.68,0.00013972,2]
[333956664,1722648642337,-500.0,0.00013972,2]
[333956665,1722648642347,-235.29595528,0.00013972,2]
[333956666,1722648642357,-500.0,0.00013972,2]
[333956667,1722648642367,-500.0,0.00013972,2]
[333956668,1722648642376,-1626.9,0.00013972,2]
[333956669,1722648642385,-611.63,0.00013972,2]
[333956670,1722648642395,-500.0,0.00013972,2]
[333956671,1722648642405,-500.0,0.00013972,2]
[333956672,1722648642414,-500.0,0.00013972,2]
[333956673,1722648642431,-500.0,0.00013972,2]
[333956674,1722648642440,-567.35,0.00013972,2]
[333956675,1722648642450,-500.0,0.00013972,2]
[333956676,1722648642459,-3822.01,0.00013972,2]
[333956677,1722648642469,-500.0,0.00013972,2]
[333956678,1722648642478,-500.0,0.00013972,2]
[333956679,1722648642488,-511.09,0.00013972,2]
[333956680,1722648642498,-500.0,0.00013972,2]
[333956681,1722648642507,-350.11112679,0.00013972,2]
[333956682,1722648642519,-149.88887321,0.00013972,2]
[333956683,1722648642530,-500.0,0.00013972,2]
[333956684,1722648642539,-500.0,0.00013972,2]
[333956685,1722648642548,-500.0,0.00013972,2]
[333956686,1722648642558,-967.98,0.00013972,2]
[333956687,1722648642567,-500.0,0.00013972,2]
[333956688,1722648642577,-500.0,0.00013972,2]
[333956689,1722648642586,-500.0,0.00013972,2]
[333956690,1722648642595,-534.73,0.00013972,2]
[333956691,1722648642605,-500.0,0.00013972,2]
[333956692,1722648642614,-1034.76,0.00013972,2]
[333956693,1722648642624,-500.0,0.00013972,2]
[333956694,1722648642633,-892.63,0.00013972,2]
[333956695,1722648642642,-500.0,0.00013972,2]
[333956696,1722648642652,-500.0,0.00013972,2]
[333956697,1722648642661,-500.0,0.00013972,2]
[333956698,1722648642680,-500.0,0.00013972,2]
[333956699,1722648642689,-552.5,0.00013972,2]
[333956700,1722648642699,-737.56,0.00013972,2]
[333956701,1722648642709,-1547.02,0.00013972,2]
[333956702,1722648642718,-500.0,0.00013972,2]
[333956703,1722648642728,-500.0,0.00013972,2]
[333956704,1722648642738,-150.112233,0.00014,2]
[333956705,1722648642748,-247.17905384,0.00014,2]
[333956706,1722648642758,-5742.74376872,0.00014236,2]
[333956707,1722648642768,-740.38254069,0.00014237,2]
[333956708,1722648642791,-671.77936835,0.00014237,2]
[333956709,1722648642803,-4330.58185968,0.00014237,2]
[333956710,1722648642907,-500.0,0.00014245,2]
[333956711,1722648642917,-506.9,0.00014245,2]
[333956712,1722648642930,-3730.59,0.00014245,2]
[333956713,1722648642940,-500.0,0.00014245,2]
[333956714,1722648642950,-500.0,0.00014246,2]
[333956715,1722648642959,-500.0,0.00014246,2]
[333956716,1722648642969,-500.0,0.00014246,2]
[333956717,1722648642978,-500.0,0.00014246,2]
[333956718,1722648642989,-500.0,0.00014246,2]
[333956719,1722648643000,-510.72,0.00014246,2]
[333956720,1722648643010,-500.0,0.00014246,2]
[333956721,1722648643020,-500.0,0.00014246,2]
[333956722,1722648643030,-500.0,0.00014246,2]
[333956723,1722648643040,-500.0,0.00014246,2]
[333956724,1722648643050,-500.0,0.00014246,2]
[333956725,1722648643060,-500.0,0.00014246,2]
[333956726,1722648643070,-500.0,0.00014246,2]
[333956727,1722648643082,-500.0,0.00014246,2]
[333956728,1722648643092,-1011.62,0.00014246,2]
[333956729,1722648643102,-500.0,0.00014246,2]
[333956730,1722648643112,-500.0,0.00014246,2]
[333956731,1722648643122,-500.0,0.00014246,2]
[333956732,1722648643132,-500.0,0.00014246,2]
[333956733,1722648643141,-500.0,0.00014246,2]
[333956734,1722648643152,-500.0,0.00014246,2]
[333956735,1722648643161,-500.0,0.00014246,2]
[333956736,1722648643176,-500.0,0.00014246,2]
[333956737,1722648643186,-500.0,0.00014246,2]
[333956738,1722648643196,-664.19,0.00014246,2]
[333956739,1722648643205,-500.0,0.00014246,2]
[333956740,1722648643214,-500.0,0.00014246,2]
[333956741,1722648643223,-500.0,0.00014246,2]
[333956742,1722648643233,-500.0,0.00014246,2]
[333956743,1722648643242,-500.0,0.00014246,2]
[333956744,1722648643251,-500.0,0.00014246,2]
[333956745,1722648643259,-227.45637803,0.00014246,2]
[333956798,1722648644078,-500.0,0.00013698,2]
[333956799,1722648644088,-207.87671643,0.00013846,2]
[333956800,1722648644097,-500.0,0.00013972,2]
[333956801,1722648644108,-355.28053513,0.00014246,2]
[333956805,1722648644332,-207.87671643,0.00014094,2]
[333956806,1722648644343,-5029.73308684,0.00014246,2]
[333956808,1722648644352,-2518.51,0.00014246,2]
[333956811,1722648644362,-500.0,0.00014246,2]
[333956814,1722648644371,-151.0,0.00014246,2]
[333956817,1722648644380,-2721.68,0.00014246,2]
[333956820,1722648644390,-500.0,0.00014246,2]
[333956823,1722648644399,-849.67,0.00014246,2]
[333956825,1722648644409,-151.0,0.00014246,2]
[333956827,1722648644420,-500.0,0.00014246,2]
[333956829,1722648644437,-500.0,0.00014246,2]
[333956831,1722648644447,-500.0,0.00014246,2]
[333956833,1722648644456,-500.0,0.00014246,2]
[333956835,1722648644465,-151.0,0.00014246,2]
[333956837,1722648644475,-558.8,0.00014246,2]
[333956839,1722648644485,-151.0,0.00014246,2]
[333956841,1722648644495,-151.0,0.00014246,2]
[333956843,1722648644504,-151.0,0.00014246,2]
[333956845,1722648644513,-500.0,0.00014246,2]
[333956847,1722648644523,-500.0,0.00014246,2]
[333956849,1722648644533,-500.0,0.00014246,2]
[333956851,1722648644542,-151.0,0.00014246,2]
[333956853,1722648644551,-500.0,0.00014246,2]
[333956855,1722648644560,-500.0,0.00014246,2]
[333956857,1722648644570,-500.0,0.00014246,2]
[333956859,1722648644580,-581.26,0.00014246,2]
[333956861,1722648644589,-1404.09,0.00014246,2]
[333956863,1722648644598,-151.0,0.00014246,2]
[333956865,1722648644607,-500.0,0.00014246,2]
[333956867,1722648644618,-920.59,0.00014246,2]
[333956869,1722648644627,-500.0,0.00014246,2]
[333956871,1722648644636,-500.0,0.00014246,2]
[333956873,1722648644645,-500.0,0.00014246,2]
[333956875,1722648644655,-693.68,0.00014246,2]
[333956877,1722648644664,-151.926338,0.00014246,2]
[333956880,1722648644678,-500.0,0.00014246,2]
[333956882,1722648644687,-151.0,0.00014246,2]
[333956884,1722648644697,-151.926338,0.00014246,2]
[333956886,1722648644707,-1626.9,0.00014246,2]
[333956888,1722648644716,-500.0,0.00014246,2]
[333956890,1722648644726,-611.63,0.00014246,2]
[333956892,1722648644735,-500.0,0.00014246,2]
[333956894,1722648644744,-152.123833,0.00014246,2]
[333956896,1722648644753,-220.13376,0.00014246,2]
[333956898,1722648644763,-500.0,0.00014246,2]
[333956900,1722648644773,-205.935803,0.00014246,2]
[333956902,1722648644782,-500.0,0.00014246,2]
[333956904,1722648644794,-567.35,0.00014246,2]
[333956906,1722648644804,-205.935803,0.00014246,2]
[333956908,1722648644813,-151.0,0.00014246,2]
[333956910,1722648644822,-500.0,0.00014246,2]
[333956912,1722648644831,-3822.01,0.00014246,2]
[333956914,1722648644841,-500.0,0.00014246,2]
[333956916,1722648644852,-500.0,0.00014246,2]
[333956918,1722648644861,-511.09,0.00014246,2]
[333956921,1722648644881,-500.0,0.00014246,2]
[333956924,1722648644893,-500.0,0.00014246,2]
[333956926,1722648644904,-500.0,0.00014246,2]
[333956928,1722648644913,-500.0,0.00014246,2]
[333956930,1722648644927,-500.0,0.00014246,2]
[333956932,1722648644937,-967.98,0.00014246,2]
[333956934,1722648644947,-538.00111446,0.00014246,2]
[333956936,1722648644957,-174.42536313,0.00014246,2]
[333956938,1722648644966,-500.0,0.00014246,2]
[333956939,1722648644975,-534.73,0.00014246,2]
[333956940,1722648644986,-500.0,0.00014246,2]
[333956941,1722648644995,-1034.76,0.00014246,2]
[333956942,1722648645009,-500.0,0.00014246,2]
[333956943,1722648645019,-500.0,0.00014246,2]
[333956944,1722648645028,-892.63,0.00014246,2]
[333956945,1722648645039,-199.59332,0.00014246,2]
[333956946,1722648645048,-500.0,0.00014246,2]
[333956947,1722648645058,-500.0,0.00014246,2]
[333956948,1722648645068,-500.0,0.00014246,2]
[333956949,1722648645079,-199.59332,0.00014246,2]
[333956950,1722648645089,-552.5,0.00014246,2]
[333956951,1722648645098,-737.56,0.00014246,2]
[333956952,1722648645108,-151.0,0.00014246,2]
[333956953,1722648645117,-1547.02,0.00014246,2]
[333956954,1722648645127,-151.0,0.00014246,2]
[333956956,1722648645137,-500.0,0.00014246,2]
[333956958,1722648645147,-500.0,0.00014246,2]
[333956960,1722648645156,-500.0,0.00014246,2]
[333956962,1722648645166,-654.638557,0.00014247,2]
[333956964,1722648645177,-712.5,0.00014247,2]
[333956966,1722648645187,-151.0,0.000145,2]
[333956968,1722648645197,-180.232132,0.000145,2]
[333956970,1722648645207,-151.0,0.000145,2]
[333956972,1722648645217,-151.0,0.000145,2]
[333956975,1722648645227,-500.0,0.00014509,2]
[333956977,1722648645237,-151.0,0.0001451,2]
[333956979,1722648645247,-151.0,0.0001451,2]
[333956981,1722648645256,-151.0,0.0001451,2]
[333956983,1722648645266,-151.0,0.0001451,2]
[333956985,1722648645275,-5742.74376872,0.0001451,2]
[333956987,1722648645285,-500.0,0.00014518,2]
[333956989,1722648645294,-500.0,0.00014519,2]
[333956991,1722648645305,-506.9,0.00014519,2]
[333956993,1722648645315,-3730.59,0.00014519,2]
[333956995,1722648645325,-500.0,0.00014519,2]
[333956997,1722648645334,-500.0,0.0001452,2]
[333956999,1722648645345,-312.14763831,0.0001452,2]
[333957001,1722648645354,-500.0,0.0001452,2]
[333957003,1722648645365,-298.29774428,0.0001452,2]
[333957005,1722648645375,-510.72,0.0001452,2]
[333957007,1722648645385,-500.0,0.0001452,2]
[333957009,1722648645394,-500.0,0.0001452,2]
[333957011,1722648645404,-500.0,0.0001452,2]
[333957013,1722648645414,-500.0,0.0001452,2]
[333957015,1722648645423,-500.0,0.0001452,2]
[333957017,1722648645443,-500.0,0.0001452,2]
[333957019,1722648645452,-500.0,0.0001452,2]
[333957021,1722648645462,-500.0,0.0001452,2]
[333957023,1722648645471,-151.0,0.0001452,2]
[333957025,1722648645481,-151.0,0.0001452,2]
[333957027,1722648645490,-151.0,0.0001452,2]
[333957029,1722648645500,-1011.62,0.0001452,2]
[333957031,1722648645510,-151.0,0.0001452,2]
[333957033,1722648645519,-500.0,0.0001452,2]
[333957035,1722648645529,-500.0,0.0001452,2]
[333957037,1722648645539,-500.0,0.0001452,2]
[333957039,1722648645548,-151.0,0.0001452,2]
[333957041,1722648645557,-500.0,0.0001452,2]
[333957043,1722648645566,-500.0,0.0001452,2]
[333957045,1722648645576,-500.0,0.0001452,2]
[333957047,1722648645585,-500.0,0.0001452,2]
[333957050,1722648645595,-500.0,0.0001452,2]
[333957052,1722648645604,-500.0,0.0001452,2]
[333957054,1722648645614,-664.19,0.0001452,2]
[333957056,1722648645624,-500.0,0.0001452,2]
[333957058,1722648645634,-500.0,0.0001452,2]
[333957060,1722648645643,-500.0,0.0001452,2]
[333957062,1722648645653,-151.0,0.0001452,2]
[333957064,1722648645662,-180.232132,0.0001452,2]
[333957066,1722648645671,-273.47591,0.0001452,2]
[333957068,1722648645685,-500.0,0.0001452,2]
[333957070,1722648645695,-151.0,0.0001452,2]
[333957072,1722648645704,-500.0,0.0001452,2]
[333957074,1722648645714,-5612.47,0.0001452,2]
[333957076,1722648645723,-2518.51,0.0001452,2]
[333957078,1722648645733,-500.0,0.0001452,2]
[333957080,1722648645743,-151.0,0.0001452,2]
[333957082,1722648645752,-2721.68,0.0001452,2]
[333957084,1722648645763,-849.67,0.0001452,2]
[333957086,1722648645771,-500.0,0.0001452,2]
[333957088,1722648645781,-500.0,0.0001452,2]
[333957101,1722648645892,-500.0,0.0001452,2]
[333957103,1722648645902,-500.0,0.0001452,2]
[333957105,1722648645913,-558.8,0.0001452,2]
[333957107,1722648645922,-151.0,0.0001452,2]
[333957109,1722648645939,-151.0,0.0001452,2]
[333957112,1722648645952,-151.0,0.0001452,2]
[333957114,1722648645962,-500.0,0.0001452,2]
[333957116,1722648645971,-500.0,0.0001452,2]
[333957118,1722648645980,-500.0,0.0001452,2]
[333957120,1722648645995,-151.0,0.0001452,2]
[333957122,1722648646005,-500.0,0.0001452,2]
[333957124,1722648646014,-500.0,0.0001452,2]
[333957126,1722648646023,-500.0,0.0001452,2]
[333957128,1722648646035,-581.26,0.0001452,2]
[333957130,1722648646044,-1404.09,0.0001452,2]
[333957132,1722648646054,-151.0,0.0001452,2]
[333957134,1722648646063,-500.0,0.0001452,2]
[333957136,1722648646074,-920.59,0.0001452,2]
[333957138,1722648646084,-500.0,0.0001452,2]
[333957140,1722648646094,-500.0,0.0001452,2]
[333957142,1722648646103,-500.0,0.0001452,2]
[333957144,1722648646115,-693.68,0.0001452,2]
[333957146,1722648646124,-151.926338,0.0001452,2]
[333957148,1722648646133,-500.0,0.0001452,2]
[333957150,1722648646144,-151.0,0.0001452,2]
[333957152,1722648646153,-151.926338,0.0001452,2]
[333957154,1722648646163,-1626.9,0.0001452,2]
[333957156,1722648646172,-500.0,0.0001452,2]
[333957158,1722648646189,-611.63,0.0001452,2]
[333957160,1722648646199,-500.0,0.0001452,2]
[333957162,1722648646209,-500.0,0.0001452,2]
[333957164,1722648646218,-205.935803,0.0001452,2]
[333957166,1722648646228,-500.0,0.0001452,2]
[333957168,1722648646238,-567.35,0.0001452,2]
[333957170,1722648646248,-205.935803,0.0001452,2]
[333957172,1722648646257,-151.0,0.0001452,2]
[333957174,1722648646268,-500.0,0.0001452,2]
[333957176,1722648646277,-3822.01,0.0001452,2]
[333957178,1722648646288,-500.0,0.0001452,2]
[333957180,1722648646299,-500.0,0.0001452,2]
[333957182,1722648646308,-511.09,0.0001452,2]
[333957184,1722648646319,-500.0,0.0001452,2]
[333957186,1722648646328,-500.0,0.0001452,2]
[333957188,1722648646338,-500.0,0.0001452,2]
[333957190,1722648646348,-508.25568407,0.0001452,2]
[333957192,1722648646357,-967.98,0.0001452,2]
[333957194,1722648646367,-500.0,0.0001452,2]
[333957196,1722648646376,-534.73,0.0001452,2]
[333957198,1722648646386,-500.0,0.0001452,2]
[333957200,1722648646396,-1034.76,0.0001452,2]
[333957202,1722648646406,-500.0,0.0001452,2]
[333957204,1722648646415,-500.0,0.0001452,2]
[333957206,1722648646428,-892.63,0.0001452,2]
[333957208,1722648646437,-199.59332,0.0001452,2]
[333957210,1722648646446,-500.0,0.0001452,2]
[333957212,1722648646455,-500.0,0.0001452,2]
[333957214,1722648646465,-500.0,0.0001452,2]
[333957216,1722648646476,-199.59332,0.0001452,2]
[333957218,1722648646486,-552.5,0.0001452,2]
[333957220,1722648646496,-737.56,0.0001452,2]
[333957222,1722648646506,-151.0,0.0001452,2]
[333957224,1722648646517,-1547.02,0.0001452,2]
[333957227,1722648646527,-151.0,0.0001452,2]
[333957229,1722648646537,-500.0,0.0001452,2]
[333957231,1722648646547,-500.0,0.0001452,2]
[333957233,1722648646556,-500.0,0.0001452,2]
[333957234,1722648646566,-151.0,0.00014679,2]
[333957236,1722648646576,-151.0,0.00014679,2]
[333957238,1722648646586,-151.0,0.00014679,2]
[333957240,1722648646596,-1421.55300371,0.00014684,2]
[333957242,1722648646606,-9675.60609712,0.0001469,2]
[333957244,1722648646616,-816.12306889,0.0001469,2]
[333957246,1722648646625,-286.57214146,0.0001469,2]
[333957248,1722648646636,-1091.44740037,0.0001469,2]
[333957250,1722648646646,-261.1733593,0.0001469,2]
[333957252,1722648646655,-30000.0,0.0001469,2]
[333957257,1722648646666,-151.0,0.0001469,2]
[333957260,1722648646679,-151.0,0.0001469,2]
[333957265,1722648646689,-151.0,0.0001469,2]
[333957269,1722648646699,-151.0,0.0001469,2]
[333957273,1722648646708,-199.59332,0.0001469,2]
[333957276,1722648646718,-199.59332,0.0001469,2]
[333957280,1722648646727,-151.0,0.0001469,2]
[333957284,1722648646737,-151.0,0.0001469,2]
[333957287,1722648646746,-500.0,0.00014696,2]
[333957291,1722648646756,-151.0,0.00014697,2]
[333957295,1722648646765,-11485.4875374,0.00014697,2]
[333957299,1722648646774,-500.0,0.00014706,2]
[333957303,1722648646783,-500.0,0.00014706,2]
[333957307,1722648646793,-216.52897764,0.00014706,2]
[333957310,1722648646802,-500.0,0.00014706,2]
[333957314,1722648646813,-500.0,0.00014706,2]
[333957318,1722648646823,-500.0,0.00014706,2]
[333957322,1722648646833,-500.0,0.00014706,2]
[333957325,1722648646843,-500.0,0.00014706,2]
[333957328,1722648646852,-352.23952569,0.00014706,2]
[333957331,1722648646862,-500.0,0.00014706,2]
[333957334,1722648646872,-27992.46804279,0.00014707,5]
[333957477,1722648648486,-560.67458289,0.00013698,2]
[333957479,1722648648498,-207.87671643,0.00014342,2]
[333957480,1722648648508,-207.87671643,0.0001459,2]
[333957481,1722648648518,-7814.77198425,0.00014707,5]
[333957483,1722648648530,-748.5329681,0.00014707,5]
[333958832,1722648722321,302.80350173,9.999e-05,2]
[333958833,1722648722640,286.98671735,9.999e-05,2]
[333958837,1722648847277,535.4,0.00025,60]
[333958838,1722648877032,5094.0,0.00025,60]
[333958839,1722648881137,534.367532,9.999e-05,2]
[333958840,1722648975855,316.607,0.00027,120]
[333958841,1722649000773,155.14040243,9.999e-05,2]
[333958843,1722649104777,1331.20340788,0.00027,120]
[333958844,1722649126698,1388.34425841,0.00025,60]
[333958845,1722649544059,151.0,0.00027,120]
[333958846,1722649558883,151.6381,0.00027,120]
[333958847,1722649561811,460.69782009,0.00027,120]
[333958851,1722649831278,154.92257037,9.999e-05,2]
[333958887,1722649832941,-154.89931544,0.00012119,2]
[333958889,1722649832952,-300.0,0.00012543,2]
[333958891,1722649832962,-1173.30020476,0.00012544,2]
[333959445,1722649838854,-23726.69979524,0.00012544,2]
[333959448,1722649838864,-168.755751,0.00012986,2]
[333959450,1722649838874,-1959.73224124,0.00013597,2]
[333959454,1722649838885,-151.16228624,0.00013598,2]
[333959457,1722649838895,-9134.82717796,0.00013688,2]
[333959460,1722649838906,-500.0,0.00013697,2]
[333959462,1722649838915,-500.0,0.00013697,2]
[333959465,1722649838925,-345.54163527,0.00013698,2]
[333959468,1722649838934,-501.01393807,0.00013698,2]
[333959471,1722649838943,-503.37012291,0.00013698,2]
[333959473,1722649838953,-508.41137282,0.00013698,2]
[333959475,1722649838962,-502.33698685,0.00013698,2]
[333959477,1722649838971,-501.37581479,0.00013698,2]
[333959479,1722649838980,-504.12850048,0.00013698,2]
[333959482,1722649838991,-502.83617114,0.00013698,2]
[333959484,1722649839001,-500.0,0.00013698,2]
[333959486,1722649839011,-505.45757159,0.00013698,2]
[333959488,1722649839020,-506.63878692,0.00013698,2]
[333959490,1722649839030,-500.0,0.00013698,2]
[333959492,1722649839040,-505.69785829,0.00013698,2]
[333959494,1722649839049,-508.39845061,0.00013698,2]
[333959496,1722649839059,-500.0,0.00013698,2]
[333959498,1722649839068,-503.81223264,0.00013698,2]
[333959500,1722649839078,-500.0,0.00013698,2]
[333959502,1722649839087,-503.33797836,0.00013698,2]
[333959504,1722649839099,-507.54076707,0.00013698,2]
[333959506,1722649839108,-500.0,0.00013698,2]
[333959508,1722649839117,-505.36998775,0.00013698,2]
[333959510,1722649839127,-597.16655605,0.00013698,2]
[333959512,1722649839137,-504.00307471,0.00013698,2]
[333959514,1722649839146,-500.0,0.00013698,2]
[333959516,1722649839156,-500.0,0.00013698,2]
[333959518,1722649839165,-500.0,0.00013698,2]
[333959520,1722649839175,-506.12585077,0.00013698,2]
[333959521,1722649839185,-526.95761356,0.00013698,2]
[333959523,1722649839194,-503.66921433,0.00013698,2]
[333959525,1722649839203,-503.39435197,0.00013698,2]
[333959527,1722649839213,-503.60970998,0.00013698,2]
[333959529,1722649839223,-503.16626666,0.00013698,2]
[333959531,1722649839232,-504.92658618,0.00013698,2]
[333959533,1722649839242,-500.0,0.00013698,2]
[333959535,1722649839252,-500.0,0.00013698,2]
[333959537,1722649839261,-503.06680341,0.00013698,2]
[333959539,1722649839271,-500.0,0.00013698,2]
[333959541,1722649839280,-501.81288566,0.00013698,2]
[333959543,1722649839290,-528.73233688,0.00013698,2]
[333959545,1722649839299,-505.14400031,0.00013698,2]
[333959547,1722649839309,-501.12752463,0.00013698,2]
[333959549,1722649839319,-500.79565286,0.00013698,2]
[333959561,1722649839329,-501.45201071,0.00013698,2]
[333959563,1722649839440,-533.14296707,0.00013698,2]
[333959565,1722649839450,-507.62216351,0.00013698,2]
[333959567,1722649839462,-500.0,0.00013698,2]
[333959569,1722649839473,-500.0,0.00013698,2]
[333959571,1722649839483,-550.67717887,0.00013698,2]
[333959573,1722649839493,-500.0,0.00013698,2]
[333959575,1722649839503,-501.13126224,0.00013698,2]
[333959577,1722649839513,-503.72665599,0.00013698,2]
[333959579,1722649839524,-505.4915161,0.00013698,2]
[333959581,1722649839534,-504.44120178,0.00013698,2]
[333959583,1722649839543,-504.85044734,0.00013698,2]
[333959585,1722649839553,-970.18,0.00013698,2]
[333959587,1722649839563,-555.28703829,0.00013698,2]
[333959590,1722649839575,-619.38698282,0.00013698,2]
[333959592,1722649839585,-502.2904014,0.00013698,2]
[333959594,1722649839598,-500.9424632,0.00013698,2]
[333959596,1722649839608,-509.86012609,0.00013698,2]
[333959597,1722649839617,-506.66305378,0.00013698,2]
[333959599,1722649839626,-502.98404734,0.00013698,2]
[333959601,1722649839635,-501.59648859,0.00013698,2]
[333959603,1722649839644,-500.9047467,0.00013698,2]
[333959605,1722649839654,-276.21774009,0.00013698,2]
[333959607,1722649839662,-500.0,0.00013698,2]
[333959609,1722649839671,-505.70590983,0.00013698,2]
[333959611,1722649839680,-253.39550413,0.00013698,2]
[333959613,1722649839689,-505.81869236,0.00013698,2]
[333959615,1722649839699,-507.25121903,0.00013698,2]
[333959617,1722649839708,-500.0,0.00013698,2]
[333959619,1722649839717,-504.30861018,0.00013698,2]
[333959621,1722649839727,-500.0,0.00013698,2]
[333959623,1722649839736,-447.4714438,0.00013698,2]
[333959625,1722649839746,-506.01664173,0.00013698,2]
[333959626,1722649839755,-503.07531237,0.00013698,2]
[333959628,1722649839764,-500.0,0.00013698,2]
[333959630,1722649839773,-500.0,0.00013698,2]
[333959632,1722649839782,-503.35245157,0.00013698,2]
[333959634,1722649839791,-500.0,0.00013698,2]
[333959636,1722649839800,-500.0,0.00013698,2]
[333959638,1722649839810,-513.51614673,0.00013698,2]
[333959640,1722649839820,-502.45814817,0.00013698,2]
[333959642,1722649839830,-500.0,0.00013698,2]
[333959644,1722649839839,-500.0,0.00013698,2]
[333959646,1722649839851,-502.67353918,0.00013698,2]
[333959648,1722649839861,-503.34587047,0.00013698,2]
[333959651,1722649839872,-500.0,0.00013698,2]
[333959653,1722649839884,-500.0,0.00013698,2]
[333959655,1722649839895,-500.0,0.00013698,2]
[333959657,1722649839906,-503.65704644,0.00013698,2]
[333959659,1722649839916,-502.93646616,0.00013698,2]
[333959661,1722649839927,-505.89322118,0.00013698,2]
[333959663,1722649839937,-507.81366039,0.00013698,2]
[333959665,1722649839947,-500.0,0.00013698,2]
[333959667,1722649839959,-504.33822417,0.00013698,2]
[333959670,1722649839968,-435.11155311,0.00013698,2]
[333959673,1722649839979,-507.45450502,0.00013698,2]
[333959675,1722649839989,-500.0,0.00013698,2]
[333959677,1722649840000,-500.0,0.00013698,2]
[333959679,1722649840010,-502.84869629,0.00013698,2]
[333959681,1722649840022,-223.70662768,0.00013698,2]
[333959683,1722649840032,-268.6935369,0.00013698,2]
[333959685,1722649840042,-500.0,0.00013698,2]
[333959687,1722649840054,-500.0,0.00013698,2]
[333959689,1722649840063,-500.0,0.00013698,2]
[333959691,1722649840073,-311.98242818,0.00013698,2]
[333959693,1722649840083,-505.10807544,0.00013698,2]
[333959695,1722649840094,-502.79305012,0.00013698,2]
[333959698,1722649840106,-502.07771127,0.00013698,2]
[333959700,1722649840116,-503.1686396,0.00013698,2]